bitfinex/quotes_ETHUSD_20220218
["timestamp","ask_amount","ask_price","bid_price","bid_amount"]
[1645199431240,0.5276117,2798.0,2795.8,0.417]
[1645199431241,4.84271799,2797.0,2795.8,0.417]
[1645199431441,4.84271799,2797.0,2795.3,3.5]
[1645199431740,0.55198102,2796.7,2795.9,0.6322802]
[1645199431936,4.84271799,2797.4,2795.9,0.6322802]
[1645199432138,4.84271799,2797.4,2796.0,3.5]
[1645199432334,0.1787,2798.3,2796.2,1.7881927]
[1645199432542,0.13819997,2799.0,2796.7,0.89399]
[1645199432543,4.84271799,2798.4,2796.7,0.89399]
[1645199432738,4.84271799,2798.4,2797.3,0.8938322]
[1645199432938,4.84271799,2798.0,2797.3,0.68576522]
[1645199433136,0.53106868,2798.1,2796.8,0.417]
[1645199433339,0.03368396,2797.3,2796.1,6.181701]
[1645199433539,0.53106868,2798.1,2796.1,0.417]
[1645199433540,4.80911799,2797.4,2796.1,0.417]
[1645199433835,0.01241889,2797.8,2796.3,1.7883492]
[1645199434035,0.53106868,2798.1,2796.1,0.417]
[1645199434239,5.35724585,2797.4,2796.1,0.417]
[1645199434517,0.54812786,2797.4,2797.3,0.00382009]
[1645199434707,0.54812786,2797.4,2795.8,3.5770285]
[1645199434708,0.00325602,2796.8,2795.8,3.5770285]
[1645199434909,0.00325602,2796.8,2796.1,0.8942999]
[1645199435308,0.00325602,2796.8,2796.3,0.6316518]
[1645199435510,0.00325602,2796.8,2796.5,0.00382118]
[1645199436308,0.00325602,2796.8,2796.5,2.68609408]
[1645199436509,0.00325602,2796.8,2796.5,0.8941229]
[1645199436710,0.00325602,2796.8,2796.6,0.417]
[1645199437309,0.00325602,2796.8,2796.6,1.31105]
[1645199437909,4.80911799,2798.4,2796.7,6.5]
[1645199438112,4.80911799,2798.4,2797.6,0.8938471]
[1645199438364,4.80911799,2798.4,2797.9,0.89375]
[1645199438566,4.80911799,2798.4,2797.7,0.417]
[1645199438964,0.59680536,2798.0,2796.9,2.681405]
[1645199439166,20.8,2797.9,2796.4,0.00274659]
[1645199439368,0.59680536,2798.0,2796.4,0.00274659]
[1645199439369,4.80911799,2797.2,2796.4,0.00274659]
[1645199439568,0.59680536,2798.0,2796.5,1.7882706]
[1645199439772,4.80911799,2797.6,2796.5,1.7882706]
[1645199439971,4.80911799,2797.5,2796.4,1.79102659]
[1645199440170,4.80911799,2797.5,2796.9,0.57543858]
[1645199440376,0.59680536,2798.0,2796.5,0.89401]
[1645199440673,0.59680536,2798.0,2796.4,1.7883379]
[1645199440873,5.0,2797.8,2795.5,7.0763054]
[1645199441072,5.0,2797.8,2795.5,1.3115371]
[1645199441073,0.01289467,2797.5,2795.5,1.3115371]
[1645199441273,0.01289467,2797.5,2795.5,0.417]
[1645199441274,4.80911799,2796.3,2795.5,0.417]
[1645199441473,4.80911799,2796.3,2795.7,0.50891494]
[1645199441670,4.80911799,2796.3,2795.7,2.29770394]
[1645199441873,4.80911799,2797.2,2795.8,0.417]
[1645199442094,0.1787,2798.3,2795.9,3.5]
[1645199442286,0.1787,2798.3,2797.1,0.8940615]
[1645199442287,4.70400419,2797.3,2797.1,0.8940615]
[1645199442488,4.70400419,2797.3,2796.1,1.78813]
[1645199442489,0.57984066,2796.7,2796.1,1.78813]
[1645199442685,0.57984066,2796.7,2794.9,25.2085373]
[1645199442686,5.28384485,2796.7,2795.5,3.5765153]
[1645199443084,5.28384485,2796.7,2796.6,0.00177678]
[1645199443988,5.28384485,2796.7,2795.5,0.53635632]
[1645199443989,4.946206,2796.0,2795.9,0.8944561]
[1645199444287,4.946206,2796.0,2795.9,1.7887861]
[1645199444786,4.946206,2796.0,2795.9,0.8944561]
[1645199444986,4.946206,2796.0,2795.7,0.00093895]
[1645199445848,4.946206,2796.0,2795.6,2.49410833]
[1645199446250,4.70400419,2796.7,2795.7,6.917]
[1645199446451,4.70400419,2796.7,2796.1,1.7883109]
[1645199446654,4.70400419,2796.7,2796.2,0.417]
[1645199447151,0.62297855,2796.3,2795.6,0.70521003]
[1645199447451,4.70400419,2796.1,2793.7,4.96491378]
[1645199447651,3.5,2796.2,2794.3,0.1788]
[1645199447852,3.5,2796.2,2794.5,0.89489]
[1645199447853,4.70400419,2795.6,2794.5,0.89489]
[1645199448058,0.01249846,2796.0,2794.8,0.8948333]
[1645199448254,4.70400419,2796.0,2795.9,0.02461792]
[1645199449053,0.1787,2796.7,2795.9,0.02461792]
[1645199449254,0.1787,2797.1,2795.9,0.02461792]
[1645199449494,0.01233596,2797.8,2795.9,0.02461792]
[1645199449495,4.70400419,2796.8,2796.0,0.417]
[1645199449893,4.70400419,2796.8,2796.0,2.2058955]
[1645199450197,5.3036867,2796.8,2796.1,2.6828758]
[1645199450393,5.3036867,2796.8,2796.2,0.89434]
[1645199450595,4.70400419,2796.3,2796.2,0.8444478]
[1645199451193,4.70400419,2796.3,2795.9,0.02461792]
[1645199451392,21.39968251,2796.8,2795.9,0.02461792]
[1645199451393,0.52039716,2796.2,2795.9,0.02461792]
[1645199451593,0.52039716,2796.2,2795.9,0.91928032]
[1645199451594,4.70400419,2796.0,2795.9,0.91928032]
[1645199453245,4.70400419,2796.0,2795.9,0.8946624]
[1645199453442,4.70400419,2796.0,2795.8,0.00340058]
[1645199454039,4.70400419,2796.0,2795.7,0.0034007]
[1645199454241,4.70400419,2795.8,2795.7,0.0034007]
[1645199454442,0.1787,2797.0,2795.7,0.0034007]
[1645199454443,4.70400419,2795.9,2795.7,0.0034007]
[1645199454641,4.70400419,2795.9,2795.7,1.7923007]
[1645199455143,4.70400419,2795.9,2795.7,0.17015039]
[1645199455542,4.70400419,2795.9,2795.7,0.8945012]
[1645199455744,4.70400419,2795.9,2795.5,3.5781058]
[1645199455745,6.5,2795.8,2795.3,0.00204066]
[1645199455941,11.20400419,2795.8,2795.3,0.00204066]
[1645199456143,6.5,2795.8,2795.3,0.00204066]
[1645199456543,6.5,2795.8,2795.4,0.8946986]
[1645199456744,6.5,2795.8,2792.8,19.56156]
[1645199456745,0.71466367,2795.6,2795.5,0.0027207]
[1645199456994,0.71466367,2795.6,2795.5,2.07e-05]
[1645199456995,26.21866786,2795.6,2795.5,2.07e-05]
[1645199457194,26.23147291,2795.6,2795.5,2.07e-05]
[1645199457794,25.51680924,2795.6,2795.5,2.07e-05]
[1645199457996,4.71680924,2795.6,2795.5,2.07e-05]
[1645199458196,4.70400419,2795.6,2795.5,2.07e-05]
[1645199458593,4.70400419,2795.6,2794.4,1.78976]
[1645199458794,4.70400419,2795.4,2795.0,0.8950171]
[1645199459193,0.64247856,2795.5,2795.0,0.8950171]
[1645199459194,21.44247856,2795.5,2795.0,0.8950171]
[1645199459395,21.44247856,2795.5,2794.3,0.53322915]
[1645199459396,4.70400419,2795.1,2794.3,0.53322915]
[1645199459598,4.70400419,2795.1,2793.9,0.417]
[1645199459599,4.70400419,2794.4,2793.8,1.79014]
[1645199459797,4.70400419,2794.4,2793.3,1.79048]
[1645199459998,4.70400419,2793.7,2793.3,1.79048]
[1645199460198,4.70400419,2793.7,2793.1,0.3624]
[1645199460398,4.70400419,2793.7,2793.3,1.7908804]
[1645199460603,4.70400419,2793.7,2793.1,0.3624]
[1645199460604,5.41785983,2793.7,2793.1,0.3624]
[1645199460887,5.41785983,2793.7,2792.4,7.3]
[1645199460888,4.70400419,2793.2,2792.4,7.3]
[1645199461090,21.69587,2793.3,2792.4,7.3]
[1645199461284,4.70400419,2792.5,2791.2,3.58361]
[1645199461485,4.70400419,2792.3,2791.8,1.7918134]
[1645199461882,0.57615085,2792.4,2791.8,1.7918134]
[1645199461883,4.70400419,2791.9,2791.8,1.7918134]
[1645199462083,4.70400419,2791.9,2791.3,0.04206333]
[1645199462286,4.70400419,2791.4,2791.3,0.04206333]
[1645199462486,0.57615085,2792.4,2791.3,0.8961416]
[1645199462487,4.70400419,2791.6,2791.3,0.8961416]
[1645199462688,0.57615085,2792.4,2791.3,1.40470654]
[1645199462885,0.57615085,2792.4,2791.4,0.04149491]
[1645199463088,4.70400419,2792.2,2791.4,0.04149491]
[1645199463289,21.37615085,2792.4,2791.4,0.04149491]
[1645199463591,25.50400419,2791.5,2791.4,0.04149491]
[1645199463987,4.70400419,2791.5,2791.4,0.04149491]
[1645199464186,0.13819997,2792.3,2790.8,0.04490545]
[1645199464390,0.8941,2792.9,2790.9,2.388]
[1645199464595,2.1314,2793.8,2791.5,2.6873944]
[1645199464596,4.70400419,2792.7,2791.5,2.6873944]
[1645199464791,0.1789,2793.5,2791.5,2.6873944]
[1645199465089,0.5616515,2792.6,2791.6,0.21925806]
[1645199465289,4.70400419,2792.2,2791.7,0.89578]
[1645199465487,0.5616515,2792.6,2791.8,0.8958219]
[1645199465488,4.70400419,2791.9,2791.8,0.8958219]
[1645199465688,4.70400419,2792.2,2791.8,0.8958219]
[1645199465891,3.09163849,2792.9,2791.8,0.8958219]
[1645199466097,0.21520826,2795.0,2792.0,6.5]
[1645199466291,20.8,2794.5,2793.1,5.0]
[1645199466490,3.04475814,2796.5,2793.7,5.0]
[1645199466693,0.5,2795.4,2794.1,0.89497]
[1645199466893,0.1789,2796.4,2794.6,0.64630539]
[1645199466894,0.63484352,2795.5,2794.6,0.64630539]
[1645199467093,2.0689,2797.0,2794.8,2.684189]
[1645199467094,0.1787,2796.8,2794.8,2.684189]
[1645199467291,0.1787,2796.8,2795.7,1.7894188]
[1645199467292,20.8,2796.3,2795.7,1.7894188]
[1645199467491,1.05061272,2796.7,2794.7,1.78948]
[1645199467492,2.21856525,2795.1,2794.7,1.78948]
[1645199467689,2.21856525,2795.1,2794.8,0.8949498]
[1645199468261,2.21856525,2795.1,2794.9,0.89473]
[1645199469249,2.21856525,2795.1,2794.8,1.7897828]
[1645199470049,2.07551128,2795.6,2794.9,0.8948452]
[1645199470251,2.07551128,2795.6,2795.1,0.63207745]
[1645199470862,2.67551128,2795.6,2794.9,0.8948452]
[1645199471055,0.1787,2795.5,2794.8,1.7897828]
[1645199471258,0.1788,2795.5,2794.8,1.7897828]
[1645199471651,2.25421128,2795.6,2794.8,2.6847528]
[1645199471849,2.78912092,2795.6,2794.8,2.41681675]
[1645199472084,2.07551128,2795.6,2794.8,2.41681675]
[1645199472487,22.87551128,2795.6,2794.8,2.41681675]
[1645199472685,0.1787,2795.5,2794.8,2.41962453]
[1645199473083,0.55863026,2795.5,2794.8,2.41962453]
[1645199473285,0.02528194,2795.1,2795.0,0.02847493]
[1645199474085,2.07551128,2795.6,2795.0,0.44547493]
[1645199474492,0.00380561,2796.1,2795.1,6.5]
[1645199474687,1.75585419,2797.4,2796.2,0.89437]
[1645199474688,0.5,2797.4,2796.2,0.89437]
[1645199474893,4.5,2797.2,2796.4,0.7500479]
[1645199475089,0.98174841,2797.1,2796.6,0.8944]
[1645199475288,1.52235814,2797.7,2796.7,0.417]
[1645199475488,0.95339672,2797.6,2796.7,0.417]
[1645199475737,0.8944,2797.7,2796.9,0.89422]
[1645199475936,0.80665814,2798.1,2797.2,1.78817]
[1645199476137,0.62795814,2798.2,2797.3,0.417]
[1645199476445,0.62795814,2798.2,2796.8,3.5762873]
[1645199476446,0.51477742,2798.0,2796.3,0.08611616]
[1645199476639,5.0,2797.3,2796.4,0.417]
[1645199476836,5.0,2797.3,2796.4,2.2060261]
[1645199477239,0.1787,2797.2,2796.4,2.2060261]
[1645199477437,0.1787,2797.5,2796.6,0.8944469]
[1645199477741,0.1787,2797.9,2796.6,0.8944469]
[1645199477939,0.1787,2797.8,2796.7,0.417]
[1645199478342,0.1787,2798.0,2796.8,0.89415]
[1645199478542,0.65406796,2798.1,2796.9,0.417]
[1645199478738,0.65406796,2798.1,2796.9,1.3113136]
[1645199478943,0.1787,2798.2,2796.9,0.417]
[1645199479139,0.62795814,2798.4,2796.9,0.417]
[1645199479339,0.01238399,2798.7,2796.9,0.417]
[1645199479599,0.1787,2798.8,2797.0,5.28798]
[1645199479795,0.68122974,2798.9,2798.0,1.55042315]
[1645199479995,0.62795814,2799.3,2798.2,1.7879098]
[1645199480197,0.62795814,2799.3,2798.4,2.6811613]
[1645199480497,10.31643388,2799.4,2798.5,0.417]
[1645199480695,10.31643388,2799.4,2798.5,1.31055]
[1645199480894,10.31643388,2799.4,2798.5,2.3826705]
[1645199481093,10.31643388,2799.4,2799.1,0.6848202]
[1645199481295,0.75400414,2800.2,2799.2,2.2036107]
[1645199481498,0.8944,2800.6,2799.2,2.2036107]
[1645199481499,1.52235814,2800.6,2799.4,1.78637]
[1645199481696,1.52235814,2800.6,2799.5,0.417]
[1645199481697,0.62795814,2800.5,2799.5,0.417]
[1645199481914,1.52235814,2800.6,2799.4,1.13171178]
[1645199482096,0.8944,2800.6,2799.6,0.8934398]
[1645199482297,0.62795814,2801.0,2800.3,1.7863273]
[1645199482499,0.62795814,2801.1,2800.4,0.417]
[1645199482696,0.62795814,2801.1,2800.2,1.7861]
[1645199482697,0.62795814,2801.5,2800.2,0.82238571]
[1645199482904,0.126046,2801.6,2800.5,0.417]
[1645199483097,4.0,2801.6,2800.2,0.45349776]
[1645199483349,0.64999712,2801.2,2800.7,2.6786086]
[1645199483554,4.0,2801.6,2800.8,0.417]
[1645199483749,0.62795814,2801.7,2800.8,1.30994]
[1645199483954,0.29175674,2802.0,2801.1,0.89274]
[1645199483955,0.11335674,2802.0,2801.1,0.89274]
[1645199484152,0.11335674,2802.0,2801.2,0.417]
[1645199484350,0.11335674,2802.0,2801.3,0.417]
[1645199484753,0.75020796,2802.0,2801.3,0.417]
[1645199484949,0.75020796,2802.0,2801.6,1.60635608]
[1645199485149,0.75020796,2802.0,2801.3,0.89274]
[1645199485348,0.75020796,2802.0,2800.8,1.78548]
[1645199485349,3.5,2801.9,2800.8,1.77947284]
[1645199485548,0.11335674,2802.0,2801.0,0.8928023]
[1645199485753,2.14945419,2803.1,2801.7,0.71304738]
[1645199485754,0.62795814,2803.0,2801.7,0.71304738]
[1645199486051,1.15758406,2803.2,2802.0,2.6771476]
[1645199486250,0.52962592,2803.2,2802.2,1.78488]
[1645199486450,0.52962592,2803.2,2801.9,1.78488]
[1645199486451,0.5122728,2802.6,2801.9,0.89264]
[1645199486649,0.5122728,2802.6,2801.2,3.570203]
[1645199486856,0.1784,2802.5,2801.2,3.570203]
[1645199487313,0.1784,2802.5,2801.2,2.89062636]
[1645199487611,0.54077545,2802.1,2801.8,1.7853692]
[1645199487810,0.54077545,2802.1,2801.5,0.50516772]
[1645199488010,0.54077545,2802.1,2801.5,0.417]
[1645199488212,0.02432405,2802.0,2801.5,0.417]
[1645199488410,0.02432405,2802.0,2800.9,2.6784119]
[1645199488411,0.02483239,2801.9,2800.9,2.6784119]
[1645199488611,0.68909175,2801.5,2800.9,2.6784119]
[1645199488810,0.68909175,2801.5,2800.9,0.85260895]
[1645199489010,0.00171156,2801.3,2800.9,0.85260895]
[1645199489214,0.00171156,2801.3,2800.7,0.8931357]
[1645199490622,5.1784,2801.2,2800.2,0.13819997]
[1645199490861,0.7784,2801.2,2800.2,0.13819997]
[1645199491056,5.0,2800.9,2799.7,0.8934014]
[1645199491355,0.62818984,2800.6,2799.7,0.53340398]
[1645199491555,0.3,2800.9,2799.7,0.53340398]
[1645199491757,0.3,2800.9,2799.7,1.786615]
[1645199491959,6.5,2801.1,2799.8,0.417]
[1645199492154,0.3,2801.0,2799.8,0.417]
[1645199492357,0.3,2801.0,2800.0,0.8433075]
[1645199492557,0.68047976,2800.9,2800.0,0.8433075]
[1645199493754,0.00163493,2800.5,2800.0,0.8433075]
[1645199494155,0.69473424,2800.4,2800.0,0.8433075]
[1645199494361,0.00163493,2800.5,2800.0,0.8433075]
[1645199494994,0.00163493,2800.5,2799.7,1.00924966]
[1645199495193,0.00147349,2800.6,2799.7,1.00924966]
[1645199495393,0.00147349,2800.6,2799.8,0.417]
[1645199495595,0.52786271,2800.5,2800.0,0.8933075]
[1645199495995,0.52786271,2800.5,2800.1,0.417]
[1645199496298,0.52786271,2800.5,2799.2,0.13819997]
[1645199496299,25.80167166,2800.4,2799.2,0.13819997]
[1645199496595,20.8,2800.2,2799.2,0.13819997]
[1645199496795,0.4784,2800.1,2799.2,0.13819997]
[1645199496995,0.18007166,2800.4,2799.2,0.13819997]
[1645199497202,0.00167166,2800.4,2799.2,0.13819997]
[1645199497396,0.64410923,2800.0,2799.2,1.03153997]
[1645199497698,0.00334332,2800.4,2799.3,0.8935342]
[1645199497896,0.00167166,2800.4,2799.3,0.8935342]
[1645199498457,0.00168097,2799.9,2799.5,1.7868745]
[1645199498853,20.8,2799.8,2799.5,2.6802913]
[1645199499055,2.43179263,2799.2,2798.3,0.417]
[1645199499256,2.73179263,2799.2,2798.3,0.417]
[1645199499655,2.43179263,2799.2,2798.3,1.31082]
[1645199499860,2.43179263,2799.2,2798.4,1.7875638]
[1645199500054,3.10567317,2799.2,2798.4,1.7875638]
[1645199500857,0.0017674,2798.9,2798.4,1.7875638]
[1645199501458,0.0017674,2798.9,2798.5,2.68119]
[1645199501655,0.0017674,2798.9,2798.6,0.8936948]
[1645199501856,2.43179263,2799.2,2798.7,1.31051]
[1645199501857,2.38356003,2799.2,2798.7,1.31051]
[1645199502089,0.8933,2800.2,2798.7,1.31051]
[1645199502289,0.0881,2800.3,2798.8,4.0]
[1645199502492,0.0881,2800.3,2799.5,0.89341]
[1645199502493,0.50348497,2800.2,2799.5,0.89341]
[1645199502688,0.50348497,2800.2,2799.8,0.89341]
[1645199502888,0.50348497,2800.2,2799.6,0.8933768]
[1645199503091,0.91277451,2799.7,2798.7,3.573581]
[1645199503491,0.91277451,2799.7,2798.7,4.467251]
[1645199503689,0.91277451,2799.7,2798.7,3.573581]
[1645199503991,0.91277451,2799.7,2799.2,1.7866466]
[1645199504191,0.91277451,2799.7,2799.3,0.417]
[1645199504790,0.91277451,2799.7,2799.4,0.89343]
[1645199504997,0.91277451,2799.7,2799.5,3.09673]
[1645199505192,0.91277451,2799.7,2799.5,4.8832195]
[1645199505393,0.1786,2800.4,2799.5,4.8832195]
[1645199506041,0.1786,2800.4,2799.8,0.89326]
[1645199506241,0.76145889,2800.4,2799.9,2.6796248]
[1645199506442,0.1786,2800.4,2799.9,2.6796248]
[1645199506844,0.1786,2800.4,2798.4,0.0347091]
[1645199506845,5.0,2800.0,2798.4,0.0347091]
[1645199507044,20.8,2799.9,2798.5,0.89383]
[1645199507244,5.01271322,2800.0,2798.5,0.89383]
[1645199507245,0.01271322,2800.0,2798.9,0.893746]
[1645199507443,0.1786,2800.4,2798.9,0.417]
[1645199507846,0.1786,2800.4,2799.1,2.6802126]
[1645199507847,0.75402105,2800.4,2799.1,2.6802126]
[1645199508043,0.75402105,2800.4,2798.9,0.417]
[1645199508244,0.89362,2800.3,2799.5,0.92788682]
[1645199508444,20.8,2800.2,2799.5,0.92788682]
[1645199508649,20.8,2800.0,2799.5,0.03430592]
[1645199509246,0.60586797,2799.6,2799.5,0.92791782]
[1645199509489,20.8,2800.0,2799.5,0.92791782]
[1645199509690,0.00186546,2799.9,2799.5,0.92791782]
[1645199510696,0.00186546,2799.9,2799.5,3.60851672]
[1645199510892,0.00186546,2799.9,2799.6,0.417]
[1645199511500,0.00186546,2799.9,2799.6,1.31026]
[1645199511895,0.00186546,2799.9,2799.6,3.9899]
[1645199512095,0.00186546,2799.9,2799.6,4.8831903]
[1645199512293,0.00191629,2799.8,2799.6,4.8831903]
[1645199512493,0.00191629,2799.8,2799.6,3.9899303]
[1645199513092,0.00191629,2799.8,2799.6,3.9399303]
[1645199513349,0.1786,2800.4,2799.8,0.89303]
[1645199513350,0.00179278,2799.9,2799.8,0.89303]
[1645199513552,0.00179278,2799.9,2799.8,1.31003]
[1645199513750,0.1786,2800.4,2799.9,0.8930786]
[1645199514050,0.1786,2800.4,2800.0,4.8831762]
[1645199514949,0.1786,2800.4,2800.2,0.89311]
[1645199515350,0.1786,2800.4,2800.1,2.84521167]
[1645199517196,1.53823168,2800.0,2798.9,0.417]
[1645199517396,20.8,2799.9,2799.7,1.7870843]
[1645199517594,20.8,2799.9,2799.5,0.50041823]
[1645199517793,2.35171596,2800.0,2799.7,0.8936161]
[1645199517997,1.83823168,2800.0,2799.7,0.8936161]
[1645199518394,1.53823168,2800.0,2799.7,0.8936161]
[1645199518995,0.20401192,2800.4,2799.7,0.8936161]
[1645199518996,0.18116689,2800.4,2799.7,0.8936161]
[1645199519196,0.00191625,2800.0,2799.7,0.8936161]
[1645199519395,0.00191625,2800.0,2799.9,3.5725609]
[1645199520595,0.00191628,2800.2,2799.9,3.5725609]
[1645199521658,0.00191628,2800.2,2800.0,0.89321]
[1645199521955,0.17925061,2800.4,2800.0,1.7864113]
[1645199521956,0.00191629,2800.1,2800.0,1.7864113]
[1645199522256,0.17925061,2800.4,2800.0,1.7864113]
[1645199522452,0.17925061,2800.4,2800.0,0.8932013]
[1645199522453,0.67141388,2800.3,2800.0,0.8932013]
[1645199522851,0.00174968,2800.2,2800.0,0.8932013]
[1645199523457,0.4786,2800.4,2800.0,0.8932013]
[1645199523953,0.1786,2800.4,2800.0,0.8932013]
[1645199524599,1.22411659,2800.4,2800.0,0.8932013]
[1645199524799,1.10655814,2800.4,2800.0,0.8932013]
[1645199525009,20.8,2800.1,2800.0,0.8932013]
[1645199525199,20.8,2800.1,2799.8,0.8937396]
[1645199525200,21.1,2800.1,2799.8,0.8937396]
[1645199525400,21.1,2800.1,2799.5,2.28787323]
[1645199525401,21.45413825,2800.0,2799.5,2.28787323]
[1645199525799,0.57712384,2799.6,2799.5,2.28787323]
[1645199526001,1.70037447,2799.9,2799.5,2.28787323]
[1645199526199,0.65485788,2799.8,2799.5,2.28787323]
[1645199526700,0.3,2799.8,2799.5,3.18158863]
[1645199526902,0.3,2800.1,2799.5,3.18158863]
[1645199526903,0.65485788,2799.9,2799.5,3.18158863]
[1645199527100,0.52661707,2799.6,2799.5,3.18158863]
[1645199528549,0.52661707,2799.6,2799.5,3.17664215]
[1645199528948,0.65769,2799.9,2799.5,2.28292675]
[1645199528949,0.63185788,2799.8,2799.5,2.28292675]
[1645199529145,0.01158036,2800.4,2799.5,6.27275645]
[1645199529146,1.0475128,2800.4,2799.5,6.27275645]
[1645199529346,0.00199621,2800.4,2799.7,2.6791967]
[1645199529544,1.04551659,2800.9,2799.8,0.417]
[1645199529945,0.61166183,2800.5,2799.8,0.417]
[1645199530246,0.00191592,2800.3,2800.0,0.8930656]
[1645199530444,0.00191592,2800.3,2800.2,0.89324]
[1645199530646,0.00191592,2800.3,2800.2,1.31024]
[1645199531447,0.68974735,2800.7,2800.2,1.31024]
[1645199531647,0.68974735,2800.7,2800.2,2.2034187]
[1645199531846,0.68974735,2800.7,2800.3,1.78639]
[1645199532095,0.68974735,2800.7,2800.3,2.20339]
[1645199532297,0.68974735,2800.7,2800.3,0.11516344]
[1645199532796,0.68974735,2800.7,2800.3,1.90155344]
[1645199533397,0.68974735,2800.7,2800.3,1.78639]
[1645199535003,1.25585419,2800.8,2800.3,1.78639]
[1645199535204,0.00191627,2800.6,2800.3,1.78639]
[1645199535404,0.00191627,2800.6,2800.3,0.16459472]
[1645199536057,0.61474892,2800.6,2800.3,0.16459472]
[1645199536260,0.00191627,2800.6,2800.3,0.16459472]
[1645199537459,0.00383254,2800.6,2800.3,0.16459472]
[1645199537658,0.00191627,2800.6,2800.3,0.16459472]
[1645199538262,0.00191627,2800.6,2800.4,0.93296221]
[1645199538659,0.30383254,2800.6,2800.4,0.93296221]
[1645199538863,0.00383254,2800.6,2800.4,0.93296221]
[1645199539063,2.30137078,2800.9,2800.5,0.5]
[1645199539268,2.30137078,2800.9,2800.6,1.78629]
[1645199539501,2.30137078,2800.9,2800.6,2.679434]
[1645199540300,2.60137078,2800.9,2800.7,1.78636]
[1645199540501,3.22837427,2800.9,2800.7,1.78636]
[1645199540802,1.31450299,2800.8,2800.7,1.78636]
[1645199541001,1.31450299,2800.8,2800.6,2.679434]
[1645199541201,2.36001958,2800.9,2800.6,2.679434]
[1645199541410,0.65792532,2800.7,2800.6,2.679434]
[1645199542002,0.65776552,2800.7,2800.6,2.679434]
[1645199542404,45.35783289,2801.0,2800.6,2.679434]
[1645199542603,46.67233588,2801.0,2800.6,2.679434]
[1645199542802,45.35783289,2801.0,2800.7,0.89314]
[1645199543004,45.35783289,2801.0,2800.8,0.93197681]
[1645199543449,0.55276329,2800.9,2800.8,0.93197681]
[1645199543648,1.86726628,2800.9,2800.8,0.93197681]
[1645199543851,0.55276329,2800.9,2800.8,0.93197681]
[1645199546052,45.65783289,2801.0,2800.8,0.93165021]
[1645199546053,39.2560933,2801.0,2800.8,0.93165021]
[1645199546253,34.6028933,2801.0,2800.8,4.20563071]
[1645199546451,23.8893418,2801.0,2800.8,4.20563071]
[1645199546657,23.8893418,2801.0,2800.9,1.78577]
[1645199546852,23.8893418,2801.0,2800.9,2.97500075]
[1645199547097,13.1756416,2801.0,2800.9,2.97500075]
[1645199547297,0.8933,2801.9,2801.3,0.89282]
[1645199547298,0.65792367,2801.6,2801.3,0.89282]
[1645199547500,0.65792367,2801.7,2801.4,0.5954]
[1645199547701,0.65792367,2801.7,2801.4,1.48813]
[1645199547899,1.31515262,2802.2,2801.5,6.0]
[1645199548201,2.76991574,2802.5,2801.5,6.0]
[1645199548202,1.0704728,2802.5,2802.1,0.54233124]
[1645199548402,1.0704728,2802.5,2802.2,0.417]
[1645199548403,7.28e-05,2802.5,2802.2,0.417]
[1645199548601,1.0711,2803.2,2802.3,6.5]
[1645199548602,2.20785262,2803.2,2802.3,6.5]
[1645199548801,2.20785262,2803.2,2802.4,0.5952]
[1645199548802,1.31515262,2803.2,2802.4,0.5952]
[1645199549102,1.31515262,2803.1,2802.4,0.12828752]
[1645199549304,1.69944294,2803.4,2802.4,0.12828752]
[1645199549305,1.31515262,2803.2,2802.4,0.12828752]
[1645199549504,1.31515262,2803.1,2802.4,0.12828752]
[1645199549703,1.31515262,2802.9,2802.2,1.7852462]
[1645199549900,1.0704728,2802.5,2802.2,1.7852462]
[1645199550101,1.0704728,2802.5,2802.4,0.8926047]
[1645199550500,1.0704728,2802.5,2802.2,1.7852462]
[1645199550744,1.3704728,2802.5,2801.8,0.417]
[1645199550947,1.3704728,2802.5,2802.0,1.7855004]
[1645199551547,0.58501399,2802.1,2802.0,1.7855004]
[1645199551747,1.3704728,2802.5,2802.0,1.7855004]
[1645199552145,1.3704728,2802.5,2802.1,0.89263]
[1645199552348,1.3704728,2802.5,2802.1,1.7851501]
[1645199552547,1.0704728,2802.5,2802.1,4.4625216]
[1645199553147,1.0704728,2802.5,2802.2,1.78512]
[1645199553346,1.0704728,2802.5,2802.2,2.67768]
[1645199553748,0.00150935,2802.7,2802.3,0.417]
[1645199554049,0.00150935,2802.7,2802.4,0.8924544]
[1645199554247,0.03121491,2803.0,2802.4,1.3094544]
[1645199554508,0.03121491,2803.0,2802.6,1.7847]
[1645199554897,0.03121491,2803.0,2802.7,0.89235]
[1645199555095,0.03121491,2803.0,2802.6,1.7847]
[1645199555297,0.03121491,2803.0,2802.7,1.3093484]
[1645199555597,0.03121491,2803.0,2802.8,0.1643056]
[1645199555795,0.03121491,2803.0,2802.7,2.18742794]
[1645199556198,0.03298437,2803.0,2802.7,2.18742794]
[1645199557003,0.03298437,2803.0,2802.7,1.3093484]
[1645199557196,0.03298437,2803.0,2802.7,0.8923484]
[1645199557597,0.03298437,2803.0,2802.8,0.89236]
[1645199558446,0.03298437,2803.0,2802.9,0.02099057]
[1645199558447,0.00176946,2803.0,2802.9,0.02099057]
[1645199558655,0.00353892,2803.0,2802.9,0.02099057]
[1645199558950,0.00176946,2803.0,2802.7,2.52043378]
[1645199559652,0.00176946,2803.0,2802.7,1.7847884]
[1645199560048,0.00168269,2803.1,2802.8,0.417]
[1645199560249,0.61285282,2803.5,2802.8,0.417]
[1645199560449,0.61285282,2803.5,2802.9,2.6767696]
[1645199560648,0.61285282,2803.5,2803.0,1.30929]
[1645199560848,0.61285282,2803.5,2803.0,2.20164]
[1645199561054,0.56839994,2803.6,2803.0,2.20164]
[1645199561248,0.00672967,2803.4,2803.0,2.20164]
[1645199561447,0.00672967,2803.4,2803.1,0.8922922]
[1645199561648,0.00672967,2803.4,2803.2,0.417]
[1645199561849,0.00672967,2803.4,2803.2,1.7846]
[1645199562304,0.8727505,2803.5,2803.0,1.45910459]
[1645199562503,0.5701589,2803.6,2803.0,1.45910459]
[1645199562697,0.5701589,2803.6,2803.0,1.99295754]
[1645199562898,0.5701589,2803.6,2803.1,0.8922922]
[1645199563099,0.5701589,2803.6,2802.9,0.03667113]
[1645199563296,0.47512265,2803.6,2802.9,0.03667113]
[1645199563497,0.47688161,2803.6,2802.9,0.03667113]
[1645199563697,0.47512265,2803.6,2802.9,0.03667113]
[1645199563897,0.47512265,2803.6,2802.9,0.92898113]
[1645199564300,0.00175896,2803.6,2803.0,0.8924435]
[1645199564498,0.00175896,2803.6,2803.1,1.7846021]
[1645199564698,0.18171789,2803.6,2803.1,1.7846021]
[1645199564902,0.00175893,2803.6,2803.1,0.71355604]